fUSD/lending_fUSD_20250311
["ID","MTS","AMOUNT","RATE_DAILY","PERIOD"]
[355950467,1741728642794,-578.13,9.259e-05,2]
[355950469,1741728642803,-500.0,9.259e-05,2]
[355950471,1741728642817,-500.0,9.259e-05,2]
[355950472,1741728642828,-548.99,9.259e-05,2]
[355950475,1741728642837,-500.0,9.26e-05,2]
[355950478,1741728642846,-500.0,9.26e-05,2]
[355950481,1741728642856,-757.05,9.26e-05,2]
[355950484,1741728642865,-763.65,9.26e-05,2]
[355950487,1741728642874,-595.68006894,9.26e-05,2]
[355950489,1741728642884,-500.0,9.26e-05,2]
[355950490,1741728642895,-500.0,9.26e-05,2]
[355950493,1741728642905,-500.0,9.26e-05,2]
[355950494,1741728642915,-500.0,9.26e-05,2]
[355950496,1741728642925,-500.0,9.26e-05,2]
[355950498,1741728642934,-500.0,9.26e-05,2]
[355950500,1741728642944,-500.0,9.26e-05,2]
[355950502,1741728642953,-500.0,9.26e-05,2]
[355950504,1741728642963,-613.57,9.26e-05,2]
[355950506,1741728642972,-528.33,9.26e-05,2]
[355950508,1741728642982,-500.0,9.26e-05,2]
[355950510,1741728642993,-500.0,9.26e-05,2]
[355950512,1741728643003,-500.0,9.26e-05,2]
[355950514,1741728643012,-500.0,9.26e-05,2]
[355950516,1741728643022,-500.0,9.26e-05,2]
[355950518,1741728643032,-500.0,9.26e-05,2]
[355950520,1741728643041,-500.0,9.26e-05,2]
[355950522,1741728643050,-785.64,9.26e-05,2]
[355950524,1741728643059,-1047.72,9.26e-05,2]
[355950526,1741728643068,-306.06842568,9.26e-05,2]
[355950528,1741728643077,-801.06,9.26e-05,2]
[355950529,1741728643087,-1062.55,9.26e-05,2]
[355950530,1741728643096,-500.0,9.26e-05,2]
[355950531,1741728643105,-1105.29,9.26e-05,2]
[355950532,1741728643114,-500.0,9.26e-05,2]
[355950533,1741728643123,-570.17237654,9.26e-05,2]
[355950534,1741728643132,-500.0,9.26e-05,2]
[355950536,1741728643144,-573.44718752,9.26e-05,2]
[355950538,1741728643154,-500.0,9.26e-05,2]
[355950540,1741728643163,-500.0,9.26e-05,2]
[355950541,1741728643173,-500.0,9.26e-05,2]
[355950542,1741728643182,-1315.6,9.26e-05,2]
[355950543,1741728643191,-500.0,9.26e-05,2]
[355950544,1741728643201,-720.56,9.26e-05,2]
[355950545,1741728643211,-1117.32,9.26e-05,2]
[355950546,1741728643220,-888.3,9.26e-05,2]
[355950547,1741728643230,-500.0,9.26e-05,2]
[355950548,1741728643239,-500.0,9.26e-05,2]
[355950549,1741728643248,-1070.98,9.26e-05,2]
[355950550,1741728643257,-500.0,9.26e-05,2]
[355950551,1741728643267,-882.38,9.26e-05,2]
[355950552,1741728643276,-943.57,9.26e-05,2]
[355950553,1741728643286,-500.0,9.26e-05,2]
[355950554,1741728643295,-500.0,9.26e-05,2]
[355950555,1741728643304,-500.0,9.26e-05,2]
[355950556,1741728643314,-500.0,9.26e-05,2]
[355950557,1741728643323,-500.0,9.26e-05,2]
[355950558,1741728643333,-500.0,9.26e-05,2]
[355950559,1741728643342,-692.75,9.26e-05,2]
[355950560,1741728643351,-1181.59,9.26e-05,2]
[355950561,1741728643360,-814.93,9.26e-05,2]
[355950562,1741728643369,-500.0,9.26e-05,2]
[355950563,1741728643378,-1194.46,9.26e-05,2]
[355950564,1741728643389,-500.0,9.26e-05,2]
[355950565,1741728643398,-947.35,9.26e-05,2]
[355950566,1741728643408,-500.0,9.26e-05,2]
[355950567,1741728643417,-703.45,9.26e-05,2]
[355950568,1741728643426,-500.0,9.26e-05,2]
[355950569,1741728643436,-525.61,9.26e-05,2]
[355950570,1741728643445,-500.0,9.26e-05,2]
[355950571,1741728643454,-1113.76,9.26e-05,2]
[355950572,1741728643463,-500.0,9.26e-05,2]
[355950573,1741728643472,-1149.0,9.26e-05,2]
[355950574,1741728643482,-500.0,9.26e-05,2]
[355950575,1741728643491,-745.44,9.26e-05,2]
[355950576,1741728643500,-500.0,9.26e-05,2]
[355950577,1741728643509,-500.0,9.26e-05,2]
[355950579,1741728643519,-500.0,9.26e-05,2]
[355950581,1741728643528,-500.0,9.26e-05,2]
[355950582,1741728643537,-500.0,9.26e-05,2]
[355950584,1741728643547,-644.49,9.26e-05,2]
[355950585,1741728643556,-681.42,9.26e-05,2]
[355950586,1741728643565,-500.0,9.26e-05,2]
[355950587,1741728643574,-500.0,9.26e-05,2]
[355950588,1741728643584,-1018.85,9.26e-05,2]
[355950589,1741728643593,-1052.38,9.26e-05,2]
[355950590,1741728643602,-500.0,9.26e-05,2]
[355950591,1741728643611,-500.0,9.26e-05,2]
[355950592,1741728643621,-500.0,9.26e-05,2]
[355950593,1741728643630,-532.3,9.26e-05,2]
[355950594,1741728643641,-500.0,9.26e-05,2]
[355950595,1741728643650,-500.0,9.26e-05,2]
[355950596,1741728643660,-735.89,9.26e-05,2]
[355950597,1741728643669,-500.0,9.26e-05,2]
[355950598,1741728643678,-500.0,9.26e-05,2]
[355950599,1741728643687,-801.65,9.26e-05,2]
[355950600,1741728643696,-500.0,9.26e-05,2]
[355950601,1741728643706,-500.0,9.26e-05,2]
[355950602,1741728643715,-500.0,9.26e-05,2]
[355950603,1741728643725,-575.84,9.26e-05,2]
[355950604,1741728643735,-500.2,9.26e-05,2]
[355950605,1741728643744,-500.0,9.26e-05,2]
[355950606,1741728643753,-538.37,9.26e-05,2]
[355950607,1741728643763,-563.62122466,9.26e-05,2]
[355950608,1741728643772,-500.0,9.26e-05,2]
[355950609,1741728643781,-500.0,9.26e-05,2]
[355950610,1741728643790,-500.0,9.26e-05,2]
[355950611,1741728643800,-500.0,9.26e-05,2]
[355950612,1741728643811,-500.0,9.26e-05,2]
[355950613,1741728643823,-500.0,9.26e-05,2]
[355950614,1741728643832,-1137.83,9.26e-05,2]
[355950615,1741728643841,-1103.19,9.26e-05,2]
[355950616,1741728643851,-500.0,9.26e-05,2]
[355950617,1741728643861,-500.0,9.26e-05,2]
[355950618,1741728643871,-500.0,9.26e-05,2]
[355950619,1741728643880,-500.0,9.26e-05,2]
[355950620,1741728643890,-523.6,9.26e-05,2]
[355950621,1741728643901,-1345.68,9.26e-05,2]
[355950622,1741728643911,-599.85,9.26e-05,2]
[355950623,1741728643920,-527.85,9.26e-05,2]
[355950624,1741728643929,-500.0,9.26e-05,2]
[355950625,1741728643938,-500.0,9.26e-05,2]
[355950626,1741728643947,-585.2,9.26e-05,2]
[355950627,1741728643956,-500.0,9.26e-05,2]
[355950628,1741728643965,-500.0,9.26e-05,2]
[355950629,1741728643974,-500.0,9.26e-05,2]
[355950630,1741728643983,-818.3,9.26e-05,2]
[355950631,1741728643993,-500.0,9.26e-05,2]
[355950632,1741728644002,-500.0,9.26e-05,2]
[355950633,1741728644011,-995.77,9.26e-05,2]
[355950634,1741728644020,-500.0,9.26e-05,2]
[355950635,1741728644030,-831.78,9.26e-05,2]
[355950636,1741728644039,-740.99,9.26e-05,2]
[355950637,1741728644049,-788.56,9.26e-05,2]
[355950638,1741728644058,-1209.64,9.26e-05,2]
[355950639,1741728644067,-465.76021653,9.26e-05,2]
[355950640,1741728644076,-500.0,9.26e-05,2]
[355950641,1741728644085,-500.0,9.26e-05,2]
[355950642,1741728644094,-710.15,9.26e-05,2]
[355950643,1741728644103,-500.0,9.26e-05,2]
[355950644,1741728644112,-552.89,9.26e-05,2]
[355950645,1741728644121,-1035.4,9.26e-05,2]
[355950646,1741728644130,-500.0,9.26e-05,2]
[355950647,1741728644140,-830.28,9.26e-05,2]
[355950648,1741728644150,-500.0,9.26e-05,2]
[355950649,1741728644159,-732.06,9.26e-05,2]
[355950650,1741728644168,-500.0,9.26e-05,2]
[355950651,1741728644177,-500.0,9.26e-05,2]
[355950652,1741728644186,-728.95,9.26e-05,2]
[355950653,1741728644196,-1133.74,9.26e-05,2]
[355950654,1741728644205,-500.0,9.26e-05,2]
[355950655,1741728644214,-1462.06,9.26e-05,2]
[355950656,1741728644223,-500.0,9.261e-05,2]
[355950657,1741728644232,-500.0,9.261e-05,2]
[355950658,1741728644241,-509.24559044,9.261e-05,2]
[355950659,1741728644250,-500.0,9.261e-05,2]
[355950660,1741728644259,-500.0,9.261e-05,2]
[355950661,1741728644268,-546.26,9.261e-05,2]
[355950662,1741728644277,-565.74,9.261e-05,2]
[355950663,1741728644286,-500.0,9.261e-05,2]
[355950664,1741728644295,-500.0,9.261e-05,2]
[355950665,1741728644305,-1021.83,9.261e-05,2]
[355950666,1741728644314,-500.0,9.261e-05,2]
[355950667,1741728644323,-629.5,9.261e-05,2]
[355950668,1741728644332,-691.78,9.261e-05,2]
[355950669,1741728644342,-500.0,9.261e-05,2]
[355950670,1741728644351,-877.1,9.261e-05,2]
[355950671,1741728644361,-500.0,9.261e-05,2]
[355950672,1741728644370,-500.0,9.261e-05,2]
[355950673,1741728644379,-2984.85,9.261e-05,2]
[355950674,1741728644391,-924.33,9.261e-05,2]
[355950675,1741728644400,-500.0,9.261e-05,2]
[355950676,1741728644409,-1211.4,9.261e-05,2]
[355950677,1741728644419,-500.0,9.261e-05,2]
[355950678,1741728644428,-541.53,9.261e-05,2]
[355950679,1741728644437,-970.88,9.261e-05,2]
[355950680,1741728644446,-759.85,9.261e-05,2]
[355950681,1741728644455,-914.24,9.261e-05,2]
[355950682,1741728644464,-500.0,9.261e-05,2]
[355950683,1741728644473,-500.0,9.261e-05,2]
[355950684,1741728644482,-794.82,9.261e-05,2]
[355950685,1741728644491,-500.0,9.261e-05,2]
[355950686,1741728644500,-972.52,9.261e-05,2]
[355950687,1741728644510,-500.0,9.261e-05,2]
[355950688,1741728644519,-645.51,9.261e-05,2]
[355950689,1741728644528,-500.0,9.261e-05,2]
[355950690,1741728644537,-1307.38,9.261e-05,2]
[355950691,1741728644547,-500.0,9.261e-05,2]
[355950692,1741728644556,-500.0,9.261e-05,2]
[355950693,1741728644565,-500.0,9.261e-05,2]
[355950694,1741728644575,-500.0,9.261e-05,2]
[355950695,1741728644584,-500.0,9.261e-05,2]
[355950696,1741728644593,-667.85,9.261e-05,2]
[355950697,1741728644602,-500.0,9.261e-05,2]
[355950698,1741728644611,-890.97,9.261e-05,2]
[355950699,1741728644620,-500.0,9.261e-05,2]
[355950700,1741728644630,-852.35,9.261e-05,2]
[355950701,1741728644640,-500.0,9.261e-05,2]
[355950702,1741728644855,-500.0,9.261e-05,2]
[355950703,1741728644866,-1023.35,9.261e-05,2]
[355950704,1741728644875,-695.25,9.261e-05,2]
[355950705,1741728644884,-1408.96,9.261e-05,2]
[355950706,1741728644895,-500.0,9.261e-05,2]
[355950707,1741728644904,-500.0,9.261e-05,2]
[355950708,1741728644913,-500.0,9.261e-05,2]
[355950709,1741728644923,-1032.64,9.261e-05,2]
[355950710,1741728644932,-500.0,9.261e-05,2]
[355950711,1741728644941,-554.24,9.261e-05,2]
[355950712,1741728644951,-1168.63,9.261e-05,2]
[355950713,1741728644960,-625.76,9.261e-05,2]
[355950714,1741728644969,-629.67,9.261e-05,2]
[355950715,1741728644978,-500.0,9.261e-05,2]
[355950716,1741728644988,-500.0,9.261e-05,2]
[355950717,1741728644997,-500.0,9.261e-05,2]
[355950718,1741728645006,-500.0,9.261e-05,2]
[355950719,1741728645015,-500.0,9.261e-05,2]
[355950720,1741728645025,-500.0,9.261e-05,2]
[355950721,1741728645034,-1260.73,9.261e-05,2]
[355950722,1741728645043,-529.61,9.261e-05,2]
[355950723,1741728645052,-848.32,9.261e-05,2]
[355950724,1741728645062,-500.0,9.261e-05,2]
[355950725,1741728645072,-500.0,9.261e-05,2]
[355950726,1741728645081,-625.71,9.261e-05,2]
[355950727,1741728645091,-906.0,9.261e-05,2]
[355950728,1741728645100,-500.0,9.261e-05,2]
[355950729,1741728645110,-500.0,9.261e-05,2]
[355950730,1741728645119,-500.0,9.261e-05,2]
[355950731,1741728645129,-500.0,9.261e-05,2]
[355950732,1741728645139,-500.0,9.261e-05,2]
[355950733,1741728645149,-500.0,9.261e-05,2]
[355950734,1741728645159,-500.0,9.261e-05,2]
[355950735,1741728645168,-500.0,9.261e-05,2]
[355950736,1741728645178,-500.0,9.261e-05,2]
[355950737,1741728645187,-500.0,9.261e-05,2]
[355950738,1741728645198,-500.0,9.261e-05,2]
[355950739,1741728645207,-373.21128532,9.261e-05,2]
[355950740,1741728645217,-500.0,9.262e-05,2]
[355950741,1741728645226,-678.42,9.262e-05,2]
[355950742,1741728645235,-903.46,9.262e-05,2]
[355950743,1741728645245,-500.0,9.262e-05,2]
[355950744,1741728645254,-500.0,9.262e-05,2]
[355950745,1741728645264,-500.0,9.262e-05,2]
[355950746,1741728645273,-854.38,9.262e-05,2]
[355950747,1741728645282,-541.1,9.262e-05,2]
[355950748,1741728645292,-500.0,9.262e-05,2]
[355950749,1741728645301,-964.78,9.262e-05,2]
[355950750,1741728645311,-500.0,9.262e-05,2]
[355950751,1741728645319,-500.0,9.262e-05,2]
[355950752,1741728645329,-580.08705245,9.262e-05,2]
[355950753,1741728645338,-500.0,9.262e-05,2]
[355950754,1741728645348,-500.0,9.262e-05,2]
[355950755,1741728645357,-603.07,9.262e-05,2]
[355950756,1741728645367,-500.0,9.262e-05,2]
[355950757,1741728645376,-1116.48,9.262e-05,2]
[355950758,1741728645385,-500.0,9.262e-05,2]
[355950759,1741728645395,-500.0,9.262e-05,2]
[355950760,1741728645404,-573.38,9.262e-05,2]
[355950761,1741728645414,-500.0,9.262e-05,2]
[355950762,1741728645423,-500.0,9.262e-05,2]
[355950763,1741728645433,-500.0,9.262e-05,2]
[355950764,1741728645443,-896.96,9.262e-05,2]
[355950765,1741728645452,-500.0,9.262e-05,2]
[355950766,1741728645462,-500.0,9.262e-05,2]
[355950767,1741728645472,-500.0,9.262e-05,2]
[355950768,1741728645481,-500.0,9.262e-05,2]
[355950769,1741728645491,-500.0,9.262e-05,2]
[355950770,1741728645500,-500.0,9.262e-05,2]
[355950771,1741728645510,-500.0,9.262e-05,2]
[355950772,1741728645519,-1021.97,9.262e-05,2]
[355950773,1741728645529,-528.29,9.262e-05,2]
[355950774,1741728645538,-1141.62,9.262e-05,2]
[355950775,1741728645547,-500.0,9.262e-05,2]
[355950776,1741728645557,-500.0,9.262e-05,2]
[355950777,1741728645566,-500.0,9.262e-05,2]
[355950778,1741728645575,-847.16,9.262e-05,2]
[355950779,1741728645585,-500.0,9.262e-05,2]
[355950780,1741728645594,-500.0,9.262e-05,2]
[355950781,1741728645604,-500.0,9.262e-05,2]
[355950782,1741728645613,-500.0,9.262e-05,2]
[355950783,1741728645623,-500.0,9.262e-05,2]
[355950784,1741728645632,-500.0,9.262e-05,2]
[355950785,1741728645644,-500.0,9.262e-05,2]
[355950786,1741728645654,-568.36,9.262e-05,2]
[355950787,1741728645663,-1130.65,9.262e-05,2]
[355950788,1741728645672,-595.05,9.262e-05,2]
[355950789,1741728645682,-500.0,9.262e-05,2]
[355950790,1741728645691,-1251.93,9.262e-05,2]
[355950791,1741728645701,-517.24,9.262e-05,2]
[355950792,1741728645710,-500.0,9.262e-05,2]
[355950793,1741728645719,-1219.48,9.262e-05,2]
[355950794,1741728645729,-500.0,9.262e-05,2]
[355950795,1741728645738,-759.12,9.262e-05,2]
[355950796,1741728645747,-500.0,9.262e-05,2]
[355950797,1741728645756,-617.06,9.262e-05,2]
[355950798,1741728645766,-500.0,9.262e-05,2]
[355950799,1741728645775,-627.77,9.262e-05,2]
[355950800,1741728645784,-500.0,9.262e-05,2]
[355950801,1741728645793,-586.56,9.262e-05,2]
[355950802,1741728645803,-504.45,9.262e-05,2]
[355950803,1741728645813,-500.0,9.262e-05,2]
[355950804,1741728645827,-521.86,9.262e-05,2]
[355950805,1741728645836,-625.31,9.262e-05,2]
[355950806,1741728645845,-500.0,9.262e-05,2]
[355950807,1741728645855,-500.0,9.262e-05,2]
[355950809,1741728645865,-500.0,9.262e-05,2]
[355950810,1741728645874,-500.0,9.262e-05,2]
[355950811,1741728645884,-500.0,9.262e-05,2]
[355950812,1741728645894,-500.0,9.262e-05,2]
[355950813,1741728645904,-500.0,9.262e-05,2]
[355950814,1741728645914,-500.0,9.262e-05,2]
[355950815,1741728645923,-617.58,9.262e-05,2]
[355950816,1741728645933,-500.0,9.262e-05,2]
[355950817,1741728645942,-500.0,9.262e-05,2]
[355950818,1741728645951,-500.0,9.262e-05,2]
[355950819,1741728645961,-1140.54,9.262e-05,2]
[355950820,1741728645971,-500.0,9.262e-05,2]
[355950821,1741728645980,-500.0,9.262e-05,2]
[355950822,1741728645990,-500.0,9.262e-05,2]
[355950823,1741728645999,-500.0,9.262e-05,2]
[355950824,1741728646008,-500.0,9.262e-05,2]
[355950825,1741728646017,-901.38,9.262e-05,2]
[355950826,1741728646027,-500.0,9.262e-05,2]
[355950827,1741728646036,-500.0,9.262e-05,2]
[355950828,1741728646045,-500.0,9.262e-05,2]
[355950829,1741728646054,-500.0,9.262e-05,2]
[355950830,1741728646064,-500.0,9.262e-05,2]
[355950831,1741728646073,-500.0,9.262e-05,2]
[355950832,1741728646083,-500.0,9.262e-05,2]
[355950833,1741728646092,-500.0,9.262e-05,2]
[355950834,1741728646102,-500.0,9.262e-05,2]
[355950835,1741728646111,-500.0,9.262e-05,2]
[355950836,1741728646121,-812.84,9.262e-05,2]
[355950837,1741728646130,-500.0,9.262e-05,2]
[355950838,1741728646139,-869.54,9.262e-05,2]
[355950839,1741728646149,-500.0,9.262e-05,2]
[355950840,1741728646159,-500.0,9.262e-05,2]
[355950841,1741728646169,-500.0,9.262e-05,2]
[355950842,1741728646178,-697.06,9.262e-05,2]
[355950843,1741728646187,-500.0,9.262e-05,2]
[355950844,1741728646196,-500.0,9.262e-05,2]
[355950845,1741728646205,-500.0,9.262e-05,2]
[355950846,1741728646215,-500.0,9.262e-05,2]
[355950847,1741728646224,-500.0,9.262e-05,2]
[355950848,1741728646233,-500.0,9.262e-05,2]
[355950849,1741728646243,-500.0,9.262e-05,2]
[355950850,1741728646252,-500.0,9.262e-05,2]
[355950851,1741728646261,-500.0,9.262e-05,2]
[355950852,1741728646270,-500.0,9.262e-05,2]
[355950853,1741728646279,-970.3,9.262e-05,2]
[355950854,1741728646289,-630.51445966,9.262e-05,2]
[355950855,1741728646298,-500.0,9.262e-05,2]
[355950856,1741728646307,-500.0,9.262e-05,2]
[355950857,1741728646317,-500.0,9.262e-05,2]
[355950859,1741728646326,-500.0,9.262e-05,2]
[355950860,1741728646335,-1099.22,9.262e-05,2]
[355950861,1741728646344,-994.17,9.262e-05,2]
[355950862,1741728646354,-564.75999096,9.262e-05,2]
[355950863,1741728646363,-500.0,9.262e-05,2]
[355950864,1741728646372,-500.0,9.262e-05,2]
[355950865,1741728646382,-500.0,9.262e-05,2]
[355950866,1741728646391,-500.0,9.262e-05,2]
[355950867,1741728646401,-507.78,9.262e-05,2]
[355950868,1741728646411,-500.0,9.262e-05,2]
[355950869,1741728646420,-1063.62,9.262e-05,2]
[355950870,1741728646430,-500.0,9.262e-05,2]
[355950871,1741728646439,-500.0,9.262e-05,2]
[355950872,1741728646448,-609.43523615,9.262e-05,2]
[355950873,1741728646457,-500.0,9.262e-05,2]
[355950874,1741728646466,-500.0,9.262e-05,2]
[355950875,1741728646475,-500.0,9.262e-05,2]
[355950876,1741728646485,-500.0,9.262e-05,2]
[355950877,1741728646494,-500.0,9.262e-05,2]
[355950878,1741728646503,-500.0,9.262e-05,2]
[355950879,1741728646513,-500.0,9.262e-05,2]
[355950880,1741728646522,-500.0,9.262e-05,2]
[355950881,1741728646531,-1288.12,9.262e-05,2]
[355950882,1741728646540,-933.19,9.262e-05,2]
[355950883,1741728646550,-823.24,9.262e-05,2]
[355950884,1741728646559,-500.0,9.262e-05,2]
[355950885,1741728646569,-541.63,9.262e-05,2]
[355950886,1741728646578,-500.0,9.262e-05,2]
[355950887,1741728646587,-886.35,9.262e-05,2]
[355950888,1741728646597,-500.0,9.262e-05,2]
[355950889,1741728646606,-500.0,9.262e-05,2]
[355950890,1741728646616,-500.0,9.262e-05,2]
[355950891,1741728646625,-500.0,9.262e-05,2]
[355950892,1741728646635,-500.0,9.262e-05,2]
[355950893,1741728646644,-828.45,9.262e-05,2]
[355950894,1741728646654,-500.0,9.262e-05,2]
[355950895,1741728646663,-1211.88,9.262e-05,2]
[355950896,1741728646672,-652.56,9.262e-05,2]
[355950897,1741728646681,-500.0,9.262e-05,2]
[355950898,1741728646690,-500.0,9.262e-05,2]
[355950899,1741728646699,-686.01,9.262e-05,2]
[355950900,1741728646708,-500.0,9.262e-05,2]
[355950901,1741728646718,-500.0,9.262e-05,2]
[355950902,1741728646727,-694.25,9.262e-05,2]
[355950903,1741728646737,-500.0,9.262e-05,2]
[355950904,1741728646746,-512.16,9.262e-05,2]
[355950905,1741728646756,-932.4,9.262e-05,2]
[355950906,1741728646765,-500.0,9.262e-05,2]
[355950907,1741728646775,-531.22,9.262e-05,2]
[355950908,1741728646784,-500.0,9.262e-05,2]
[355950909,1741728646794,-500.0,9.262e-05,2]
[355950910,1741728646803,-500.0,9.262e-05,2]
[355950911,1741728646813,-291.7787068,9.262e-05,2]
[355950912,1741728646824,-500.0,9.262e-05,2]
[355950913,1741728646833,-534.43,9.262e-05,2]
[355950914,1741728646843,-500.0,9.262e-05,2]
[355950915,1741728646852,-500.0,9.262e-05,2]
[355950916,1741728646862,-1160.53,9.262e-05,2]
[355950917,1741728646872,-1149.15,9.262e-05,2]
[355950918,1741728646881,-500.0,9.262e-05,2]
[355950919,1741728646893,-500.0,9.262e-05,2]
[355950920,1741728646902,-500.0,9.262e-05,2]
[355950921,1741728646912,-500.0,9.262e-05,2]
[355950922,1741728646921,-797.13,9.262e-05,2]
[355950923,1741728646931,-1292.1,9.262e-05,2]
[355950924,1741728646940,-565.99,9.262e-05,2]
[355950925,1741728646950,-500.0,9.262e-05,2]
[355950926,1741728646959,-724.16,9.262e-05,2]
[355950927,1741728646969,-500.0,9.262e-05,2]
[355950928,1741728646980,-875.78,9.262e-05,2]
[355950929,1741728646990,-716.03,9.262e-05,2]
[355950930,1741728647000,-500.0,9.262e-05,2]
[355950931,1741728647010,-500.0,9.262e-05,2]
[355950932,1741728647019,-500.0,9.262e-05,2]
[355950933,1741728647028,-500.0,9.262e-05,2]
[355950934,1741728647038,-500.0,9.262e-05,2]
[355950935,1741728647047,-500.0,9.262e-05,2]
[355950936,1741728647057,-595.58,9.262e-05,2]
[355950937,1741728647067,-500.0,9.262e-05,2]
[355950938,1741728647076,-521.48,9.262e-05,2]
[355950939,1741728647085,-500.0,9.262e-05,2]
[355950940,1741728647095,-500.0,9.262e-05,2]
[355950941,1741728647105,-1213.34,9.262e-05,2]
[355950942,1741728647114,-500.0,9.262e-05,2]
[355950943,1741728647124,-500.0,9.262e-05,2]
[355950944,1741728647199,-1098.95,9.262e-05,2]
[355950945,1741728647208,-500.0,9.262e-05,2]
[355950946,1741728647218,-500.0,9.262e-05,2]
[355950947,1741728647227,-500.0,9.262e-05,2]
[355950948,1741728647236,-840.0,9.262e-05,2]
[355950949,1741728647245,-117312.63683612,9.3e-05,2]
[355950950,1741728647267,-1664.35337353,9.3e-05,2]
[355950951,1741728647278,-787.36,9.3e-05,2]
[355950952,1741728647289,-2295.0,9.3e-05,2]
[355950953,1741728647770,-500.0,9.259e-05,2]
[355950954,1741728647780,-34.349041,9.262e-05,2]
[355950955,1741728648038,-250.18037535,9.262e-05,2]
[355950956,1741728648049,-215.47058365,9.262e-05,2]
[355950957,1741728648059,-35595.94494189,9.3e-05,2]
[355950958,1741728648068,-250.0,9.301e-05,2]
[355950959,1741728648077,-786.0,9.314e-05,2]
[355950960,1741728648087,-541.0,9.314e-05,2]
[355950961,1741728648096,-907.0,9.314e-05,2]
[355950962,1741728648105,-1428.0,9.314e-05,2]
[355950963,1741728648114,-1270.0,9.314e-05,2]
[355950964,1741728648123,-4077.0,9.314e-05,2]
[355950965,1741728648133,-151.0,9.314e-05,2]
[355950966,1741728648141,-2032.0,9.314e-05,2]
[355950967,1741728648150,-150.0,9.314e-05,2]
[355950968,1741728648159,-2359.515,9.314e-05,2]
[355950969,1741728648169,-1401.365,9.314e-05,2]
[355950970,1741728648179,-511.72,9.4e-05,2]
[355950971,1741728648188,-500.0,9.533e-05,2]
[355950972,1741728648198,-772.23,9.533e-05,2]
[355950973,1741728648207,-1508.05,9.533e-05,2]
[355950974,1741728648217,-500.0,9.533e-05,2]
[355950975,1741728648226,-862.75,9.533e-05,2]
[355950976,1741728648236,-500.0,9.533e-05,2]
[355950977,1741728648245,-502.88,9.533e-05,2]
[355950978,1741728648255,-1862.65,9.533e-05,2]
[355950979,1741728648263,-942.96,9.533e-05,2]
[355950980,1741728648273,-1030.98,9.533e-05,2]
[355950981,1741728648282,-500.0,9.533e-05,2]
[355950982,1741728648292,-614.13,9.533e-05,2]
[355950983,1741728648301,-1603.64,9.533e-05,2]
[355950984,1741728648311,-589.63,9.533e-05,2]
[355950985,1741728648321,-512.13,9.533e-05,2]
[355950986,1741728648330,-500.0,9.533e-05,2]
[355950987,1741728648339,-578.13,9.533e-05,2]
[355950988,1741728648349,-500.0,9.533e-05,2]
[355950989,1741728648358,-500.0,9.533e-05,2]
[355950990,1741728648367,-548.99,9.533e-05,2]
[355950991,1741728648377,-500.0,9.533e-05,2]
[355950992,1741728648387,-500.0,9.534e-05,2]
[355950993,1741728648396,-500.0,9.534e-05,2]
[355950994,1741728648405,-757.05,9.534e-05,2]
[355950995,1741728648415,-763.65,9.534e-05,2]
[355950996,1741728648424,-500.0,9.534e-05,2]
[355950997,1741728648433,-500.0,9.534e-05,2]
[355950998,1741728648443,-500.0,9.534e-05,2]
[355950999,1741728648452,-500.0,9.534e-05,2]
[355951000,1741728648461,-500.0,9.534e-05,2]
[355951001,1741728648470,-500.0,9.534e-05,2]
[355951002,1741728648480,-500.0,9.534e-05,2]
[355951003,1741728648489,-500.0,9.534e-05,2]
[355951004,1741728648498,-613.57,9.534e-05,2]
[355951005,1741728648507,-528.33,9.534e-05,2]
[355951006,1741728648517,-414.72538629,9.534e-05,2]